bitfinex/quotes_ETHUSD_20250808
["timestamp","ask_amount","ask_price","bid_price","bid_amount"]
[1754627714638,4.0372,3931.7,3931.6,3.47009375]
[1754627714999,3.91,3931.7,3931.6,3.47009375]
[1754627716603,0.002,3932.1,3931.8,2.54336436]
[1754627716808,0.1292,3932.1,3931.7,0.969]
[1754627717010,4.0392,3932.1,3931.8,3.51236436]
[1754627717205,4.0392,3932.1,3931.9,3.51229105]
[1754627717408,4.0392,3932.1,3932.0,3.51223499]
[1754627717613,0.1292,3932.1,3932.0,3.51223499]
[1754627717846,0.002,3932.1,3932.0,6.63943499]
[1754627718031,0.002,3932.1,3932.0,8.51862993]
[1754627720045,1e-08,3932.1,3932.0,8.71299701]
[1754627725349,1e-08,3932.1,3932.0,5.24129701]
[1754627725515,1e-08,3932.1,3932.0,3.36210207]
[1754627725721,1e-08,3932.1,3932.0,3.23490207]
[1754627725917,1e-08,3932.1,3932.0,3.04053499]
[1754627728266,1e-08,3932.1,3932.0,0.4973]
[1754627728433,1e-08,3932.1,3932.0,3.04053499]
[1754627728632,1e-08,3932.1,3932.0,2.54323499]
[1754627730840,1e-08,3932.1,3931.9,2.54328001]
[1754627731152,0.9054,3932.0,3931.6,3.00000001]
[1754627731354,0.9054,3931.9,3931.6,5.54345439]
[1754627731558,0.4517,3931.8,3931.6,5.54345439]
[1754627731959,0.4517,3931.8,3931.6,5.54349138]
[1754627732156,0.4517,3931.8,3931.6,1e-08]
[1754627732328,0.4517,3931.8,3931.6,3.00000001]
[1754627732526,0.4517,3931.8,3931.6,5.54348023]
[1754627732753,0.4537,3931.9,3931.6,5.54348023]
[1754627733138,0.1272,3932.0,3931.9,3.0]
[1754627733363,1e-08,3932.1,3932.0,3.0]
[1754627733665,0.90540001,3932.1,3932.0,3.0]
[1754627734250,3.44861981,3932.1,3931.6,1e-08]
[1754627734530,0.1272,3931.9,3931.6,3.00000001]
[1754627734743,0.9054,3931.8,3931.6,1e-08]
[1754627735228,1.0326,3931.7,3931.6,1e-08]
[1754627736333,0.1272,3931.7,3931.6,1e-08]
[1754627736530,0.1272,3931.9,3931.6,3.04079375]
[1754627736739,1e-08,3932.1,3931.8,2.54333183]
[1754627737060,1e-08,3932.1,3932.0,2.54323499]
[1754627737263,1e-08,3932.1,3932.0,5.54323499]
[1754627737563,1e-08,3932.1,3932.0,6.04053499]
[1754627737762,1e-08,3932.1,3932.0,8.88333496]
[1754627742839,1e-08,3932.1,3932.0,8.38603496]
[1754627743169,1e-08,3932.1,3932.0,5.84279997]
[1754627744066,0.94610001,3932.1,3932.0,2.84279997]
[1754627744369,1.42222452,3932.1,3932.0,2.84279997]
[1754627744965,0.12720001,3932.1,3932.0,2.84279997]
[1754627745158,0.12720001,3932.1,3931.7,0.4934]
[1754627745466,0.12720001,3932.1,3931.7,3.03680457]
[1754627745644,0.9461,3932.0,3931.6,1e-08]
[1754627745850,0.1272,3931.8,3931.6,1e-08]
[1754627746251,0.9461,3931.7,3931.6,1e-08]
[1754627747242,1e-08,3932.1,3931.6,8.94508903]
[1754627747442,1e-08,3932.1,3931.7,5.54340787]
[1754627747675,0.46150001,3932.1,3931.8,2.54334567]
[1754627747881,0.46150001,3932.1,3931.9,3.03668118]
[1754627747882,1e-08,3932.1,3931.9,3.03668118]
[1754627748071,1e-08,3932.1,3931.9,2.54328118]
[1754627748273,1e-08,3932.1,3932.0,0.4934]
[1754627748890,1e-08,3932.1,3931.9,2.54325323]
[1754627749089,1e-08,3932.1,3931.9,3.03665323]
[1754627749986,1e-08,3932.1,3931.8,4.27]
[1754627750187,1e-08,3932.1,3931.8,6.8133479]
[1754627751089,0.46150001,3932.1,3931.8,6.8133479]
[1754627751885,1e-08,3932.1,3931.8,4.27]
[1754627752187,0.9461,3932.0,3931.8,4.27]
[1754627752607,0.9461,3932.0,3931.8,6.81335775]
[1754627752752,0.9461,3931.9,3931.6,1e-08]
[1754627752952,1.54934905,3931.9,3931.6,1e-08]
[1754627753182,0.4615,3931.9,3931.6,1e-08]
[1754627753458,0.4615,3931.8,3931.6,1e-08]
[1754627753862,1e-08,3932.1,3931.6,0.49340001]
[1754627754161,0.94610001,3932.1,3931.6,0.49340001]
[1754627754386,3.48928741,3932.1,3931.6,0.49340001]
[1754627754586,0.94610001,3932.1,3931.6,0.49340001]
[1754627755187,3.48927466,3932.1,3931.6,0.49340001]
[1754627755399,3.48934474,3932.0,3931.6,0.49340001]
[1754627755695,3.48934474,3932.0,3931.6,1e-08]
[1754627755991,0.4615,3931.9,3931.6,1e-08]
[1754627756360,0.9461,3931.9,3931.6,1e-08]
[1754627757592,0.4615,3931.9,3931.6,2.5434736]
[1754627757970,0.4615,3931.9,3931.6,3.0368736]
[1754627758286,0.48460001,3932.1,3931.6,3.0368736]
[1754627758610,0.4615,3932.0,3931.6,0.49340001]
[1754627758768,3.02784218,3932.0,3931.6,0.49340001]
[1754627758962,0.4615,3931.9,3931.6,1e-08]
[1754627759166,0.9461,3931.9,3931.6,1e-08]
[1754627759683,0.48460001,3932.1,3931.7,0.4934]
[1754627759861,3.00477197,3932.0,3931.6,1e-08]
[1754627760166,0.4615,3932.0,3931.6,1e-08]
[1754627760494,0.9461,3931.9,3931.6,1e-08]
[1754627760896,0.4615,3931.8,3931.6,1e-08]
[1754627761059,0.9461,3931.8,3931.6,1e-08]
[1754627761497,2.54330619,3931.9,3931.6,1e-08]
[1754627761702,0.9461,3931.7,3931.6,1e-08]
[1754627762592,2.54324633,3932.0,3931.6,1e-08]
[1754627762898,0.1272,3931.8,3931.6,2.54348706]
[1754627763066,0.1272,3931.8,3931.7,0.4934]
[1754627763265,0.1272,3931.8,3931.6,1e-08]
[1754627764493,0.1272,3931.8,3931.6,2.54348941]
[1754627765008,0.1272,3931.8,3931.6,1e-08]
[1754627765308,1.0733,3931.8,3931.6,2.5434902]
[1754627765507,1.0733,3931.8,3931.7,2.54342905]
[1754627765801,0.1272,3931.8,3931.7,2.54342905]
[1754627765986,1e-08,3932.1,3932.0,2.54323499]
[1754627766696,1e-08,3932.1,3932.0,3.03663499]
[1754627766899,1e-08,3932.1,3932.0,3.60493499]
[1754627767079,1e-08,3932.1,3932.0,3.63036733]
[1754627767278,1e-08,3932.1,3932.0,7.87493499]
[1754627767594,1e-08,3932.1,3932.0,13.33463047]
[1754627767965,1e-08,3932.1,3932.0,17.24163047]
[1754627768997,1e-08,3932.1,3932.0,17.43567326]
[1754627776700,1e-08,3932.1,3932.0,16.99457326]
[1754627777485,1e-08,3932.1,3932.0,17.43077326]
[1754627777813,1e-08,3932.1,3932.0,16.99457326]
[1754627784329,1e-08,3932.5,3932.0,17.54457326]
[1754627784497,1e-08,3932.5,3932.4,15.03806531]
[1754627784696,1e-08,3932.5,3932.4,18.94306531]
[1754627784906,1e-08,3932.5,3932.4,19.86626531]
[1754627785108,1e-08,3932.5,3932.4,19.99346531]
[1754627785911,1e-08,3932.5,3932.4,20.32093103]
[1754627786086,1e-08,3932.5,3932.4,21.64752446]
[1754627786998,1e-08,3932.5,3932.4,25.64752446]
[1754627792948,1e-08,3932.5,3932.4,25.21032446]
[1754627793309,1e-08,3932.5,3932.4,25.64652446]
[1754627793951,1e-08,3932.5,3932.4,55.64652446]
[1754627795305,1e-08,3932.5,3932.4,55.21032446]
[1754627795801,1e-08,3932.5,3932.4,55.64652446]
[1754627796836,0.4547,3933.2,3932.8,2.54271765]
[1754627797025,0.002,3933.3,3933.2,14.48754808]
[1754627797224,0.002,3933.3,3933.2,18.87854808]
[1754627797425,0.4548,3934.3,3933.6,6.09220052]
[1754627797626,0.4548,3934.2,3933.8,5.66927127]
[1754627797839,0.4548,3934.2,3933.8,7.87469498]
[1754627798043,0.4548,3934.2,3933.8,12.63169498]
[1754627798815,0.4948,3933.9,3933.8,12.14469498]
[1754627800621,0.9495,3933.9,3933.8,13.84327127]
[1754627800826,0.9495,3933.9,3933.8,9.93927127]
[1754627801247,0.9495,3933.9,3933.8,13.84227127]
[1754627801968,0.4948,3933.9,3933.8,13.84227127]
[1754627802169,0.9495,3933.9,3933.8,13.84227127]
[1754627802852,0.9495,3933.9,3933.8,9.57227127]
[1754627803376,0.04,3933.9,3933.8,20.41003398]
[1754627803663,0.04,3933.9,3933.8,20.89703398]
[1754627803868,0.04,3933.9,3933.8,21.44703398]
[1754627805165,0.042,3933.9,3933.8,21.44703398]
[1754627807162,0.042,3933.9,3933.8,20.89703398]
[1754627807367,0.042,3933.9,3933.8,20.41003398]
[1754627807571,0.042,3933.9,3933.8,5.66927127]
[1754627807572,0.9468,3933.9,3933.8,5.66927127]
[1754627807856,0.9468,3933.9,3933.8,9.57227127]
[1754627808764,0.9468,3933.9,3933.8,5.66927127]
[1754627808976,0.9468,3933.9,3933.8,9.57227127]
[1754627809266,0.9468,3933.9,3933.8,6.57227127]
[1754627809473,0.9468,3933.9,3933.8,6.44507127]
[1754627809763,0.9468,3933.9,3933.8,9.44507127]
[1754627811374,0.47,3933.9,3933.8,9.44407127]
[1754627811671,0.042,3933.9,3933.8,9.44407127]
[1754627811852,0.042,3933.9,3933.8,11.23511657]
[1754627814679,0.042,3933.9,3933.8,15.50511657]
[1754627816878,0.042,3933.9,3933.8,15.05261657]
[1754627817778,0.47,3933.9,3933.8,15.05261657]
[1754627818581,0.47,3933.9,3933.8,11.15061657]
[1754627818786,0.9468,3933.9,3933.8,13.84127127]
[1754627819287,0.47,3933.9,3933.8,13.84127127]
[1754627819882,0.042,3933.9,3933.8,13.84127127]
[1754627820259,0.9468,3933.9,3933.8,13.84127127]
[1754627821144,0.47,3933.9,3933.8,13.84127127]
[1754627821344,0.9468,3933.9,3933.8,13.84127127]
[1754627821772,0.9468,3933.9,3933.8,9.81207127]
[1754627822091,0.9468,3933.9,3933.8,13.71407127]
[1754627824624,0.47,3933.9,3933.8,13.71407127]
[1754627824820,0.042,3933.9,3933.8,13.71407127]
[1754627825196,0.47,3933.9,3933.8,13.71407127]
[1754627828704,0.47,3933.9,3933.8,13.84127127]
[1754627830784,0.47,3933.9,3933.8,9.93927127]
[1754627830991,0.47,3933.9,3933.8,13.84027127]
[1754627831408,0.47,3933.9,3933.8,9.93927127]
[1754627831609,0.47,3933.9,3933.8,13.84027127]
[1754627834718,0.042,3933.9,3933.8,23.26356029]
[1754627834922,0.042,3933.9,3933.8,25.81885038]
[1754627836417,0.042,3933.9,3933.8,26.28195038]
[1754627836924,0.042,3933.9,3933.8,25.81885038]
[1754627837519,0.042,3933.9,3933.8,26.28195038]
[1754627838024,0.042,3933.9,3933.8,25.81885038]
[1754627838609,0.042,3933.9,3933.8,12.49456136]
[1754627838809,0.4976,3933.9,3933.8,9.93927127]
[1754627839023,0.4976,3933.9,3933.8,13.84027127]
[1754627839806,0.9969,3933.9,3933.8,13.84027127]
[1754627840008,0.4976,3933.9,3933.8,13.84027127]
[1754627843936,0.4976,3933.9,3933.8,13.83927127]
[1754627848630,0.4976,3933.9,3933.8,9.93927127]
[1754627848830,0.4976,3933.9,3933.8,13.83927127]
[1754627849416,0.4976,3933.9,3933.8,9.93927127]
[1754627849624,0.4976,3933.9,3933.8,13.83927127]
[1754627849819,0.4976,3933.9,3933.8,9.93927127]
[1754627850036,0.4976,3933.9,3933.8,13.83927127]
[1754627850359,0.4976,3933.9,3933.8,7.3972]
[1754627850644,0.9969,3933.9,3933.8,11.17]
[1754627851002,0.4976,3933.9,3933.8,11.17]
[1754627851632,0.4976,3933.9,3933.8,13.71207127]
[1754627851819,0.4976,3933.9,3933.8,11.17]
[1754627852812,0.9969,3933.9,3933.8,11.17]
[1754627853014,0.9969,3933.9,3933.6,0.001]
[1754627853259,2.5421359,3933.7,3933.6,0.001]
[1754627853424,3.16296535,3933.7,3933.6,0.001]
[1754627853934,4.11786535,3933.7,3933.6,0.001]
[1754627855050,1.07642945,3933.7,3933.6,0.001]
[1754627855237,0.9549,3933.7,3933.6,0.001]
[1754627856250,0.4556,3933.7,3933.6,0.001]
[1754627856465,0.4556,3933.7,3933.6,3.9]
[1754627856828,0.1272,3933.8,3933.7,2.5421359]
[1754627857154,0.1272,3933.8,3933.7,0.4782]
[1754627857344,0.1272,3933.8,3933.6,6.44214731]
[1754627857544,0.5828,3933.8,3933.6,6.44214731]
[1754627857858,0.5828,3933.8,3933.6,3.9]
[1754627858160,0.4556,3933.7,3933.6,3.9]
[1754627859064,0.4556,3933.7,3933.6,6.44220052]
[1754627861178,0.1272,3933.8,3933.7,2.5421359]
[1754627861380,0.5828,3933.8,3933.7,2.5421359]
[1754627861878,0.1272,3933.8,3933.7,2.5421359]
[1754627862063,0.042,3933.9,3933.8,2.54207127]
[1754627862373,0.042,3933.9,3933.8,6.91927127]
[1754627863072,0.042,3933.9,3933.8,10.87823199]
[1754627863974,0.042,3933.9,3933.8,11.31133199]
[1754627864678,0.042,3933.9,3933.8,10.87823199]
[1754627864848,0.042,3933.9,3933.8,15.14823199]
[1754627865763,0.042,3933.9,3933.8,10.77103199]
[1754627865945,0.042,3933.9,3933.8,15.14533199]
[1754627866661,0.042,3933.9,3933.8,14.67003199]
[1754627867373,0.042,3933.9,3933.8,15.14533199]
[1754627867776,0.042,3933.9,3933.8,15.14433199]
[1754627868477,0.5137,3933.9,3933.8,14.66903199]
[1754627868665,0.042,3933.9,3933.8,14.66903199]
[1754627868856,0.042,3933.9,3933.8,15.14433199]
[1754627869252,0.5137,3933.9,3933.8,14.66903199]
[1754627869448,0.042,3933.9,3933.8,11.168]
[1754627869651,0.5137,3933.9,3933.8,11.168]
[1754627870482,0.5137,3933.9,3933.8,13.71007127]
[1754627870680,0.5137,3933.9,3933.8,11.168]
[1754627871578,0.5137,3933.9,3933.8,13.71007127]
[1754627873274,0.042,3933.9,3933.8,15.87094829]
[1754627873480,0.042,3933.9,3933.8,15.99814829]
[1754627876482,0.042,3933.9,3933.8,12.10014829]
[1754627876689,0.5137,3933.9,3933.8,13.83727127]
[1754627876872,0.5137,3933.9,3933.8,13.71007127]
[1754627877785,0.042,3933.9,3933.8,13.71007127]
[1754627878082,0.042,3933.9,3933.8,14.18537127]
[1754627878594,0.042,3933.9,3933.8,10.28737127]
[1754627878779,0.042,3933.9,3933.8,13.70907127]
[1754627879131,0.5137,3933.9,3933.8,13.70907127]
[1754627879382,0.042,3933.9,3933.8,14.18437127]
[1754627880485,0.042,3933.9,3933.8,13.70907127]
[1754627880653,0.042,3933.9,3933.8,15.8223132]
[1754627881174,0.042,3933.9,3933.8,11.9253132]
[1754627881363,0.042,3933.9,3933.8,14.18437127]
[1754627885564,0.042,3933.9,3933.8,9.91437127]
[1754627885787,0.042,3933.9,3933.8,6.01737127]
[1754627886189,0.042,3933.9,3933.8,9.91437127]
[1754627887098,0.042,3933.9,3933.8,6.01737127]
[1754627887295,0.042,3933.9,3933.8,9.91437127]
[1754627889190,0.042,3933.9,3933.8,12.46966136]
[1754627891897,0.042,3933.9,3933.8,13.02996136]
[1754627892698,0.042,3933.9,3933.8,12.59686136]
[1754627894384,0.042,3933.9,3933.8,16.86686136]
[1754627901815,0.042,3933.9,3933.8,17.30986136]
[1754627902621,0.042,3933.9,3933.8,16.86686136]
[1754627903734,0.4721,3933.9,3933.8,16.38856136]
[1754627903893,0.042,3933.9,3933.8,13.83327127]
[1754627904095,0.042,3933.9,3933.8,14.32917127]
[1754627904440,0.042,3933.9,3933.8,13.83327127]
[1754627904631,0.042,3933.9,3933.8,14.32917127]
[1754627905035,0.042,3933.9,3933.8,23.27426029]
[1754627905347,0.042,3933.9,3933.8,26.27255038]
[1754627906202,1e-08,3933.9,3933.8,25.82955038]
[1754627906406,1e-08,3933.9,3933.8,26.27255038]
[1754627907319,1e-08,3933.9,3933.8,25.82955038]
[1754627908844,1e-08,3933.9,3933.8,23.27426029]
[1754627909359,1e-08,3933.9,3933.8,25.82955038]
[1754627911024,1e-08,3933.9,3933.8,21.43965038]
[1754627911258,0.43010001,3933.9,3933.8,16.38856136]
[1754627911938,0.43010001,3933.9,3933.8,16.38756136]
[1754627912133,0.43010001,3933.9,3933.8,12.49456136]
[1754627912366,0.43010001,3933.9,3933.8,13.83227127]
[1754627913335,0.43010001,3933.9,3933.8,22.77736029]
[1754627913635,1e-08,3933.9,3933.8,23.27326029]
[1754627913836,0.43010001,3933.9,3933.8,22.77736029]
[1754627914026,1e-08,3933.9,3933.8,25.30941112]
[1754627914241,3.45840667,3933.9,3933.8,0.1272]
[1754627914560,2.5421359,3933.7,3933.6,3.894]
[1754627914770,3.5857359,3933.7,3933.6,3.894]
[1754627915271,3.5857359,3933.7,3933.6,0.001]
[1754627915484,1.65637426,3933.7,3933.6,0.001]
[1754627915633,1.0436,3933.7,3933.6,3.894]
[1754627916727,1.0436,3933.7,3933.6,0.001]
[1754627917063,3.5857359,3933.7,3933.6,3.894]
[1754627918239,3.5857359,3933.7,3933.6,0.001]
[1754627918466,4.19850474,3933.7,3933.6,3.894]
[1754627918839,1.65636884,3933.7,3933.6,3.894]
[1754627919447,4.19850474,3933.7,3933.6,3.894]
[1754627919633,1.65636884,3933.7,3933.6,3.894]
[1754627919830,4.19850474,3933.7,3933.6,3.894]
[1754627920634,4.19850474,3933.7,3933.6,0.001]
[1754627920835,1.65636884,3933.7,3933.6,0.001]
[1754627921371,4.19850474,3933.7,3933.6,0.001]
[1754627927439,0.73996884,3933.7,3933.6,0.001]
[1754627927635,0.1272,3933.7,3933.6,4.3868]
[1754627927867,0.1272,3933.7,3933.6,3.894]
[1754627928042,0.12720001,3933.9,3933.6,6.92899681]
[1754627928243,0.12720001,3933.9,3933.8,2.54207127]
[1754627928244,1e-08,3933.9,3933.8,2.54207127]
[1754627928640,1e-08,3933.9,3933.8,3.03487127]
[1754627928836,1e-08,3933.9,3933.8,12.6745547]
[1754627931844,1e-08,3933.9,3933.8,12.8017547]
[1754627933779,1e-08,3933.9,3933.8,16.6937547]
[1754627934166,1e-08,3933.9,3933.8,16.2262547]
[1754627934368,1e-08,3933.9,3933.8,16.6947547]
[1754627935448,1e-08,3933.9,3933.8,12.3342547]
[1754627935655,1e-08,3933.9,3933.8,16.2262547]
[1754627935858,1e-08,3933.9,3933.8,11.9562547]
[1754627941306,0.46020001,3933.9,3933.8,11.2892]
[1754627942194,0.46020001,3933.9,3933.8,7.3982]
[1754627942354,0.94690001,3933.9,3933.8,7.271]
[1754627942689,0.94690001,3933.9,3933.8,11.162]
[1754627943257,0.94690001,3933.9,3933.8,7.271]
[1754627943458,0.94690001,3933.9,3933.8,11.162]
[1754627944696,0.94690001,3933.9,3933.8,3.001]
[1754627944874,1.30849794,3933.9,3933.8,6.892]
[1754627945190,0.94690001,3933.9,3933.8,6.891]
[1754627945694,0.94690001,3933.9,3933.8,3.891]
[1754627945901,0.94690001,3933.9,3933.8,0.001]
[1754627946106,0.94690001,3933.9,3933.8,3.891]
[1754627947003,3.48890667,3933.9,3933.8,3.891]
[1754627947294,3.85051734,3933.9,3933.8,3.891]
[1754627947792,3.85051734,3933.9,3933.8,0.001]
[1754627951683,4.40051734,3933.9,3933.8,0.001]
[1754627951882,4.50228834,3933.9,3933.8,0.001]
[1754627956198,4.45228834,3933.9,3933.8,0.001]
[1754627958797,7.85558834,3933.9,3933.8,0.001]
[1754627959009,3.86381734,3933.9,3933.8,0.001]
[1754627959218,3.31381734,3933.9,3933.8,0.4944]
[1754627959413,2.54200666,3933.9,3933.8,0.4944]
[1754627959908,2.66916036,3934.0,3933.8,0.4944]
[1754627960278,2.66914908,3934.0,3933.8,0.001]
[1754627960478,3.50040666,3933.9,3933.8,0.001]
[1754627960705,3.01010666,3933.9,3933.8,0.001]
[1754627960906,4.04335053,3933.9,3933.8,0.001]
[1754627962392,4.53365053,3933.9,3933.8,0.001]
[1754627963284,8.97365053,3933.9,3933.8,0.001]
[1754627967811,8.48335053,3933.9,3933.8,0.001]
[1754627967982,8.48235053,3933.9,3933.8,0.001]
[1754627968617,3.70245053,3933.9,3933.8,0.4944]
[1754627968828,7.59145053,3933.9,3933.8,0.4944]
[1754627968987,8.14145053,3933.9,3933.8,0.4944]
[1754627970090,7.59145053,3933.9,3933.8,0.4944]
[1754627970490,8.14145053,3933.9,3933.8,0.001]
[1754627970689,8.60955053,3933.9,3933.8,0.001]
[1754627970999,9.09985053,3933.9,3933.8,0.001]
[1754627971415,8.60955053,3933.9,3933.8,0.001]
[1754627972325,9.20161953,3933.9,3933.8,0.001]
[1754627976850,12.20161953,3933.9,3933.8,0.001]
[1754627979408,11.71131953,3933.9,3933.8,0.001]
[1754627979612,12.20161953,3933.9,3933.8,0.001]
[1754627980743,11.71131953,3933.9,3933.8,0.001]
[1754627981114,12.20161953,3933.9,3933.8,0.001]
[1754627982451,11.71131953,3933.9,3933.8,0.001]
[1754627985433,12.18461953,3933.9,3933.8,0.001]
[1754627985634,21.12970855,3933.9,3933.8,0.001]
[1754627986362,20.65640855,3933.9,3933.8,0.001]
[1754627986520,20.65640855,3933.9,3933.4,0.001]
[1754627986521,15.03735417,3933.5,3933.4,0.001]
[1754627986851,6.09232979,3933.4,3933.3,1e-08]
[1754627987055,6.21952979,3933.4,3933.3,1e-08]
[1754627987348,6.66692979,3933.4,3933.3,1e-08]
[1754627987553,6.66692979,3933.4,3932.5,0.4616]
[1754627987554,3.09278231,3932.7,3932.5,0.4616]
[1754627987758,7.67153088,3932.7,3932.5,0.4616]
[1754627987961,7.67153088,3932.7,3932.5,0.001]
[1754627988134,8.13313088,3932.7,3932.5,0.4616]
[1754627988458,8.13313088,3932.7,3932.6,0.4616]
[1754627989165,8.13313088,3932.7,3932.6,0.001]
[1754627989465,8.58053088,3932.7,3932.6,0.001]
[1754627993170,8.58053088,3932.7,3932.6,0.4616]
[1754627994935,8.58053088,3932.7,3932.6,0.001]
[1754627996762,12.05383088,3932.7,3932.6,0.001]
[1754627997355,11.58053088,3932.7,3932.6,0.001]
[1754627999570,7.24513088,3932.7,3932.6,0.001]
[1754627999753,11.13213088,3932.7,3932.6,0.4616]
[1754628000146,11.13213088,3932.7,3932.6,0.001]
[1754628000671,11.57953088,3932.7,3932.6,0.001]
[1754628000841,11.13213088,3932.7,3932.6,0.4616]
[1754628004344,7.24513088,3932.7,3932.6,0.001]
[1754628004577,11.13213088,3932.7,3932.6,0.4616]
[1754628006645,0.1272,3932.7,3932.6,0.9275]
[1754628006864,2.66998231,3932.7,3932.6,0.9275]
[1754628007846,2.66998231,3932.7,3932.6,0.4616]
[1754628008574,3.21998231,3932.7,3932.6,0.001]
[1754628008749,3.66738231,3932.7,3932.6,0.001]
[1754628008950,4.22968665,3932.7,3932.6,0.4616]
[1754628009975,6.55598231,3932.7,3932.6,0.9275]
[1754628011861,6.55598231,3932.7,3932.6,0.4616]
[1754628013470,7.10598231,3932.7,3932.6,0.4616]
[1754628013677,7.54368231,3932.7,3932.6,0.001]
[1754628018303,7.10598231,3932.7,3932.6,0.4946]
[1754628019099,2.54278231,3932.7,3932.6,0.4946]
[1754628019301,6.55498231,3932.7,3932.6,0.9548]
[1754628019800,6.55498231,3932.7,3932.6,0.4946]
[1754628020107,7.54268231,3932.7,3932.6,0.001]
[1754628022201,7.10498231,3932.7,3932.6,0.4946]
[1754628023484,8.07992673,3932.7,3932.6,0.4946]
[1754628026097,6.55498231,3932.7,3932.6,0.9548]
[1754628026466,6.55498231,3932.7,3932.6,0.4946]
[1754628026874,6.99268231,3932.7,3932.6,0.4946]
[1754628027194,6.99268231,3932.7,3932.6,0.001]
[1754628027705,7.54268231,3932.7,3932.6,0.001]
[1754628028087,8.60067114,3932.7,3932.6,0.001]
[1754628029445,9.19697314,3932.7,3932.6,0.001]
[1754628029775,8.70247314,3932.7,3932.6,0.001]
[1754628029972,9.19697314,3932.7,3932.6,0.001]
[1754628030905,12.19697314,3932.7,3932.6,0.001]
[1754628031605,11.70247314,3932.7,3932.6,0.001]
[1754628032408,12.19697314,3932.7,3932.6,0.001]
[1754628034802,11.70247314,3932.7,3932.6,0.001]
[1754628038711,10.20578431,3932.7,3932.6,0.001]
[1754628039012,10.64348431,3932.7,3932.6,0.001]
[1754628041205,11.13798431,3932.7,3932.6,0.001]
[1754628041500,10.64348431,3932.7,3932.6,0.001]
[1754628043129,10.20578431,3932.7,3932.6,0.001]
[1754628043312,11.48063334,3932.7,3932.6,0.4946]
[1754628043514,7.59663334,3932.7,3932.6,0.001]
[1754628043718,11.47963334,3932.7,3932.6,0.4819]
[1754628047144,8.37783134,3932.7,3932.6,0.4819]
[1754628049193,7.10298231,3932.7,3932.6,0.4819]
[1754628049622,6.55298231,3932.7,3932.6,0.9474]
[1754628050729,0.1272,3932.7,3932.6,0.9474]
[1754628050934,4.0092,3932.7,3932.6,0.9474]
[1754628052435,0.1272,3932.7,3932.6,0.9474]
[1754628056204,2.66998231,3932.7,3932.6,0.9474]
[1754628056405,2.66998231,3932.7,3932.6,0.4819]
[1754628056602,2.66998231,3932.7,3932.6,0.001]
[1754628056835,4.0438473,3932.7,3932.6,0.001]
[1754628058014,4.5938473,3932.7,3932.6,0.001]
[1754628058208,5.0648473,3932.7,3932.6,0.001]
[1754628058408,5.5467473,3932.7,3932.6,0.001]
[1754628060045,8.5467473,3932.7,3932.6,0.001]
[1754628061949,2.54368783,3931.3,3930.9,0.001]
[1754628062111,0.1272,3931.3,3930.9,0.001]
[1754628062311,2.67088783,3931.3,3930.9,0.001]
[1754628063728,2.67088783,3931.3,3931.0,0.4809]
[1754628064550,2.67088783,3931.3,3930.9,0.001]
[1754628064551,3.13508783,3931.3,3930.9,0.001]
[1754628064721,3.13508783,3931.3,3931.0,0.4809]
[1754628065123,2.67088783,3931.3,3931.0,0.4809]
[1754628067153,2.67088783,3931.3,3931.1,0.041]
[1754628067453,2.54394667,3930.9,3930.8,0.001]
[1754628067752,15.37003569,3930.9,3930.8,0.001]
[1754628067922,7.36014667,3930.9,3930.8,0.001]
[1754628068646,7.46200067,3930.9,3930.8,0.001]
[1754628068816,8.51758751,3930.9,3930.8,0.001]
[1754628069021,3.70138751,3930.9,3930.8,0.001]
[1754628069232,7.07680067,3930.9,3930.8,0.4819]
[1754628070629,7.07680067,3930.9,3930.8,0.001]
[1754628073154,6.52680067,3930.9,3930.8,0.001]
[1754628076027,6.99700067,3930.9,3930.8,0.001]
[1754628077262,6.52680067,3930.9,3930.8,0.001]
[1754628077459,2.64580067,3930.9,3930.8,0.001]
[1754628077658,0.1272,3930.9,3930.8,0.7833]
[1754628077960,8.94508902,3932.4,3930.8,3.32729834]
[1754628077961,3.881,3931.6,3930.8,3.32729834]
[1754628078162,0.1272,3931.1,3931.0,2.54386679]
[1754628078339,4.2944908,3932.6,3931.0,2.54386679]
[1754628078340,2.5430967,3932.3,3931.6,2.54345082]
[1754628078540,3.881,3932.2,3931.7,3.03661523]
[1754628078861,3.881,3932.2,3931.8,0.4932]
[1754628079247,0.1272,3931.9,3931.8,0.4932]
[1754628082564,2.5427862,3932.7,3931.8,3.62933356]
[1754628082763,0.04,3932.9,3931.8,3.62933356]
[1754628082764,0.1272,3932.1,3932.0,2.54323499]
[1754628083267,0.1272,3932.1,3932.0,3.32553499]
[1754628083439,3.946,3932.8,3932.1,2.54313475]
[1754628083440,0.1272,3932.4,3932.1,2.54313475]
[1754628083639,0.1272,3932.4,3932.1,3.03633475]
[1754628083836,0.1272,3932.4,3932.2,0.4932]
[1754628084168,0.9699,3932.3,3931.7,0.4932]
[1754628084345,0.1272,3932.0,3931.7,0.4932]
[1754628084848,0.4702,3931.9,3931.5,0.4932]
[1754628085050,2.54341135,3931.8,3931.5,0.4932]
[1754628085263,0.1272,3931.6,3931.1,2.67101646]
[1754628085458,0.4702,3931.8,3931.2,0.4932]
[1754628085664,0.1272,3931.4,3931.2,0.4932]
[1754628085861,0.1272,3931.4,3931.3,0.4932]
[1754628086061,0.1272,3931.4,3931.3,3.03688783]
[1754628086262,0.1272,3931.7,3931.6,2.54349374]
[1754628086573,0.1272,3931.7,3931.6,0.7823]
[1754628087073,2.54304828,3932.3,3931.6,3.32579374]
[1754628087276,0.1272,3931.9,3931.7,0.4932]
[1754628087638,0.1272,3931.9,3931.7,0.7823]
[1754628087841,0.1272,3931.9,3931.8,0.4932]
[1754628092443,0.5974,3931.9,3931.4,0.4932]
[1754628092647,0.5974,3931.9,3931.5,3.88]
[1754628092993,0.5974,3931.9,3931.5,4.3732]